[Event "Top 12 Féminin 2026"]
[Site "Asnières-sur-Seine, France"]
[Date "2026.05.13"]
[Round "1.1"]
[White "Batsiashvili, Nino"]
[Black "Kosteniuk, Alexandra"]
[Result "0-1"]
[TimeControl "1h30 / 40 moves + 30m + 30sec/move"]
[WhiteTitle "GM"]
[BlackTitle "GM"]
[WhiteFideId "-"]
[BlackFideId "-"]
[WhiteElo "2475"]
[BlackElo "2491"]

1. d4 {[%clk 01:30:57]} {[%emt 00:00:03]} d5 {[%clk 01:30:55]} {[%emt
00:00:05]} 2. c4 {[%clk 01:31:12]} {[%emt 00:00:15]} c6 {[%clk 01:31:22]}
{[%emt 00:00:04]} 3. cxd5 {[%clk 01:30:06]} {[%emt 00:01:37]} cxd5 {[%clk
01:31:47]} {[%emt 00:00:04]} 4. Bf4 {[%clk 01:30:29]} {[%emt 00:00:06]} Nc6
{[%clk 01:32:03]} {[%emt 00:00:15]} 5. e3 {[%clk 01:30:52]} {[%emt 00:00:07]}
a6 {[%clk 01:32:24]} {[%emt 00:00:10]} 6. Bd3 {[%clk 01:29:37]} {[%emt
00:01:45]} Nf6 {[%clk 01:32:42]} {[%emt 00:00:12]} 7. Nc3 {[%clk 01:28:10]}
{[%emt 00:01:56]} Bg4 {[%clk 01:33:01]} {[%emt 00:00:10]} 8. Nge2 {[%clk
01:26:57]} {[%emt 00:01:44]} e6 {[%clk 01:33:12]} {[%emt 00:00:19]} 9. Rc1
{[%clk 01:21:54]} {[%emt 00:05:33]} Bd6 {[%clk 01:26:33]} {[%emt 00:07:09]} 10.
Bxd6 {[%clk 01:17:03]} {[%emt 00:05:21]} Qxd6 {[%clk 01:26:54]} {[%emt
00:00:09]} 11. O-O {[%clk 01:17:26]} {[%emt 00:00:06]} O-O {[%clk 01:16:04]}
{[%emt 00:11:21]} 12. Qd2 {[%clk 01:14:35]} {[%emt 00:03:21]} Bh5 {[%clk
01:09:01]} {[%emt 00:07:33]} 13. Nf4 {[%clk 01:12:55]} {[%emt 00:02:09]} Bg6
{[%clk 01:09:18]} {[%emt 00:00:13]} 14. Bxg6 {[%clk 01:10:08]} {[%emt
00:03:17]} hxg6 {[%clk 01:09:42]} {[%emt 00:00:06]} 15. Nd3 {[%clk 01:09:49]}
{[%emt 00:00:50]} Rac8 {[%clk 01:05:32]} {[%emt 00:04:40]} 16. Rc2 {[%clk
00:46:19]} {[%emt 00:24:01]} Rc7 {[%clk 01:00:56]} {[%emt 00:05:06]} 17. Rfc1
{[%clk 00:43:36]} {[%emt 00:03:12]} Rfc8 {[%clk 01:00:07]} {[%emt 00:01:20]} 18.
Na4 {[%clk 00:38:54]} {[%emt 00:05:12]} Nb8 {[%clk 00:46:57]} {[%emt 00:13:40]}
19. f3 {[%clk 00:34:29]} {[%emt 00:04:55]} Nfd7 {[%clk 00:42:59]} {[%emt
00:04:28]} 20. Nac5 {[%clk 00:33:28]} {[%emt 00:01:31]} Nxc5 {[%clk 00:42:46]}
{[%emt 00:00:44]} 21. dxc5 {[%clk 00:32:43]} {[%emt 00:01:15]} Qe7 {[%clk
00:42:43]} {[%emt 00:00:33]} 22. b4 {[%clk 00:31:47]} {[%emt 00:01:27]} Qe8
{[%clk 00:39:23]} {[%emt 00:03:50]} 23. a3 {[%clk 00:23:26]} {[%emt 00:08:51]}
Rd8 {[%clk 00:34:59]} {[%emt 00:04:53]} 24. f4 {[%clk 00:16:24]} {[%emt
00:07:32]} Rdc8 {[%clk 00:26:03]} {[%emt 00:09:26]} 25. Ra2 {[%clk 00:13:49]}
{[%emt 00:03:05]} Nd7 {[%clk 00:26:10]} {[%emt 00:00:23]} 26. Rac2 {[%clk
00:11:59]} {[%emt 00:02:20]} Nf6 {[%clk 00:25:45]} {[%emt 00:00:55]} 27. Ne5
{[%clk 00:12:06]} {[%emt 00:00:22]} Qa4 {[%clk 00:25:24]} {[%emt 00:00:51]} 28.
Qd3 {[%clk 00:10:15]} {[%emt 00:02:21]} Ne4 {[%clk 00:22:36]} {[%emt 00:03:18]}
29. Rb2 {[%clk 00:09:25]} {[%emt 00:01:19]} Kh7 {[%clk 00:18:43]} {[%emt
00:04:24]} 30. Qb3 {[%clk 00:08:22]} {[%emt 00:01:33]} Qxb3 {[%clk 00:16:44]}
{[%emt 00:02:30]} 31. Rxb3 {[%clk 00:08:51]} {[%emt 00:00:01]} b6 {[%clk
00:16:55]} {[%emt 00:00:19]} 32. Nd3 {[%clk 00:09:13]} {[%emt 00:00:06]} a5
{[%clk 00:17:08]} {[%emt 00:00:18]} 33. bxa5 {[%clk 00:08:41]} {[%emt
00:01:03]} bxc5 {[%emt 00:01:48]} 34. Rb6 {[%clk 00:07:55]} Ra7 {[%clk
00:09:39]} {[%emt 00:07:56]} 35. a6 {[%clk 00:07:52]} {[%emt 00:00:33]} c4
{[%clk 00:09:38]} {[%emt 00:00:31]} 36. Nb4 {[%clk 00:08:03]} {[%emt 00:00:18]}
Nc5 {[%clk 00:10:01]} {[%emt 00:00:08]} 37. Kf1 {[%clk 00:04:10]} {[%emt
00:04:23]} Rca8 {[%clk 00:10:02]} {[%emt 00:00:30]} 38. Ra1 {[%clk 00:03:41]}
{[%emt 00:00:59]} g5 {[%clk 00:05:12]} {[%emt 00:05:20]} 39. fxg5 {[%clk
00:03:36]} {[%emt 00:00:34]} Nxa6 {[%clk 00:04:32]} {[%emt 00:01:10]} 40. Nc6
{[%clk 00:02:14]} {[%emt 00:01:52]} Rc7 {[%clk 00:04:45]} {[%emt 00:00:17]} 41.
h4 {[%clk 00:01:17]} {[%emt 00:01:26]} Nc5 {[%clk 00:04:14]} {[%emt 00:01:02]}
42. Ne5 {[%clk 00:01:41]} {[%emt 00:00:06]} f6 {[%clk 00:02:52]} {[%emt
00:01:52]} 43. Nf3 {[%clk 00:01:17]} {[%emt 00:00:54]} Rca7 {[%clk 00:18:03]}
{[%emt 00:15:19]} 44. gxf6 {[%clk 00:26:38]} {[%emt 00:05:08]} gxf6 {[%clk
00:18:26]} {[%emt 00:00:08]} 45. Rc6 {[%clk 00:18:46]} {[%emt 00:08:22]} Ne4
{[%clk 00:17:47]} {[%emt 00:01:09]} 46. Rxe6 {[%clk 00:03:02]} {[%emt
00:16:14]} Rxa3 {[%clk 00:18:14]} {[%emt 00:00:03]} 47. Re1 {[%clk 00:02:24]}
{[%emt 00:01:08]} Ra2 {[%clk 00:18:26]} {[%emt 00:00:19]} 48. Kg1 {[%clk
00:02:10]} {[%emt 00:00:43]} Rg8 {[%clk 00:18:31]} {[%emt 00:00:25]} 49. Re7+
{[%clk 00:01:11]} {[%emt 00:01:29]} Kh6 {[%clk 00:18:51]} {[%emt 00:00:09]} 50.
Rxe4 {[%clk 00:00:36]} {[%emt 00:01:06]} Rgxg2+ {[%clk 00:18:48]} {[%emt
00:00:33]} 51. Kh1 {[%clk 00:00:58]} {[%emt 00:00:07]} dxe4 {[%clk 00:19:15]}
{[%emt 00:00:04]} 52. Nd4 {[%clk 00:01:23]} {[%emt 00:00:04]} Rh2+ {[%clk
00:18:39]} {[%emt 00:01:07]} 53. Kg1 {[%clk 00:01:52]} {[%emt 00:00:01]} Rag2+
{[%clk 00:18:56]} {[%emt 00:00:14]} 54. Kf1 {[%clk 00:02:21]} c3 {[%clk
00:18:12]} {[%emt 00:01:14]} 55. Ra1 {[%clk 00:01:45]} {[%emt 00:01:06]} Rh1+
{[%clk 00:18:34]} {[%emt 00:00:08]} 56. Kxg2 {[%clk 00:02:13]} {[%emt
00:00:02]} Rxa1 {[%clk 00:18:58]} {[%emt 00:00:06]} 57. Kg3 {[%clk 00:02:07]}
{[%emt 00:00:36]} Rd1 {[%clk 00:19:18]} {[%emt 00:00:10]} 0-1

[Event "Top 12 Féminin 2026"]
[Site "Asnières-sur-Seine, France"]
[Date "2026.05.13"]
[Round "1.2"]
[White "Skripchenko, Almira"]
[Black "Guichard, Pauline"]
[Result "1/2-1/2"]
[TimeControl "1h30 / 40 moves + 30m + 30sec/move"]
[WhiteTitle "IM"]
[BlackTitle "IM"]
[WhiteFideId "-"]
[BlackFideId "-"]
[WhiteElo "2367"]
[BlackElo "2333"]

1. e4 {[%clk 01:30:52]} {[%emt 00:00:07]} c6 {[%clk 01:30:49]} {[%emt
00:00:09]} 2. d4 {[%clk 01:30:34]} {[%emt 00:00:49]} d5 {[%clk 01:31:12]}
{[%emt 00:00:08]} 3. Nd2 {[%clk 01:30:49]} {[%emt 00:00:16]} dxe4 {[%clk
01:31:21]} {[%emt 00:00:20]} 4. Nxe4 {[%clk 01:31:14]} {[%emt 00:00:05]} Nd7
{[%clk 01:31:45]} {[%emt 00:00:05]} 5. c3 {[%clk 00:59:43]} {[%emt 00:32:02]}
Ngf6 {[%clk 01:30:50]} {[%emt 00:01:25]} 6. Nxf6+ {[%clk 00:57:21]} {[%emt
00:02:52]} Nxf6 {[%clk 01:31:07]} {[%emt 00:00:12]} 7. Bc4 {[%clk 00:57:39]}
{[%emt 00:00:13]} Qc7 {[%clk 01:29:14]} {[%emt 00:02:23]} 8. Ne2 {[%clk
00:50:35]} {[%emt 00:07:33]} e6 {[%clk 01:27:40]} {[%emt 00:02:05]} 9. Bf4
{[%clk 00:47:51]} {[%emt 00:03:13]} Bd6 {[%clk 01:27:57]} {[%emt 00:00:13]} 10.
Qd2 {[%clk 00:43:53]} {[%emt 00:04:29]} O-O {[%clk 01:13:32]} {[%emt 00:14:55]}
11. Bxd6 {[%clk 00:40:21]} {[%emt 00:04:02]} Qxd6 {[%clk 01:13:32]} {[%emt
00:00:29]} 12. Qf4 {[%clk 00:40:47]} {[%emt 00:00:04]} Rd8 {[%clk 01:00:49]}
{[%emt 00:13:13]} 13. Qxd6 {[%clk 00:30:41]} {[%emt 00:10:36]} Rxd6 {[%clk
01:01:13]} {[%emt 00:00:06]} 14. O-O {[%clk 00:30:29]} {[%emt 00:00:41]} b5
{[%clk 00:52:33]} {[%emt 00:09:12]} 15. Bb3 {[%clk 00:30:48]} {[%emt 00:00:11]}
Rb8 {[%clk 00:49:43]} {[%emt 00:03:20]} 16. a3 {[%clk 00:26:45]} {[%emt
00:04:33]} a5 {[%clk 00:44:06]} {[%emt 00:06:07]} 17. Rfd1 {[%clk 00:23:53]}
{[%emt 00:03:21]} Ba6 {[%clk 00:43:23]} {[%emt 00:01:14]} 18. Nf4 {[%clk
00:23:59]} {[%emt 00:00:23]} g5 {[%clk 00:34:52]} {[%emt 00:09:02]} 19. Nd3
{[%clk 00:23:45]} {[%emt 00:00:43]} Nd7 {[%clk 00:31:39]} {[%emt 00:03:43]} 20.
Nc5 {[%clk 00:19:06]} {[%emt 00:05:09]} Nxc5 {[%clk 00:31:49]} {[%emt
00:00:20]} 21. dxc5 {[%clk 00:19:32]} {[%emt 00:00:04]} Rdd8 {[%clk 00:32:16]}
{[%emt 00:00:04]} 22. f3 {[%clk 00:17:56]} {[%emt 00:02:06]} Kf8 {[%clk
00:28:10]} {[%emt 00:04:36]} 23. Kf2 {[%clk 00:18:13]} {[%emt 00:00:12]} Ke7
{[%clk 00:28:07]} {[%emt 00:00:34]} 24. Ke3 {[%clk 00:18:17]} {[%emt 00:00:26]}
Rxd1 {[%clk 00:18:13]} {[%emt 00:10:24]} 25. Rxd1 {[%clk 00:18:41]} {[%emt
00:00:05]} Bc8 {[%clk 00:18:41]} {[%emt 00:00:03]} 26. h4 {[%clk 00:17:40]}
{[%emt 00:01:32]} h6 {[%clk 00:16:33]} {[%emt 00:02:37]} 27. hxg5 {[%clk
00:14:16]} {[%emt 00:03:55]} hxg5 {[%clk 00:16:59]} {[%emt 00:00:04]} 28. Rh1
{[%clk 00:14:11]} {[%emt 00:00:34]} Bd7 {[%clk 00:17:18]} {[%emt 00:00:11]} 29.
g4 {[%clk 00:12:01]} {[%emt 00:02:41]} Rd8 {[%clk 00:14:22]} {[%emt 00:03:26]}
30. Rh5 {[%clk 00:11:52]} {[%emt 00:00:38]} Kf6 {[%clk 00:14:12]} {[%emt
00:00:40]} 31. Ke4 {[%clk 00:12:08]} {[%emt 00:00:15]} Be8 {[%clk 00:13:34]}
{[%emt 00:01:08]} 32. Rh6+ {[%clk 00:08:18]} {[%emt 00:04:19]} Kg7 {[%clk
00:07:55]} {[%emt 00:06:10]} 33. Rh2 {[%clk 00:08:41]} {[%emt 00:00:08]} a4
{[%clk 00:07:48]} {[%emt 00:00:37]} 34. Bc2 {[%clk 00:07:21]} {[%emt 00:01:49]}
Rd5 {[%clk 00:07:55]} {[%emt 00:00:23]} 35. b4 {[%clk 00:07:40]} {[%emt
00:00:11]} axb3 {[%clk 00:07:36]} {[%emt 00:00:49]} 36. Bxb3 {[%clk 00:08:06]}
{[%emt 00:00:05]} f5+ {[%clk 00:07:52]} {[%emt 00:00:13]} 37. Ke3 {[%clk
00:08:20]} {[%emt 00:00:15]} f4+ {[%clk 00:07:57]} {[%emt 00:00:26]} 38. Ke2
{[%clk 00:05:36]} {[%emt 00:03:14]} Rxc5 {[%clk 00:03:12]} {[%emt 00:05:15]} 39.
Kd2 {[%clk 00:06:03]} {[%emt 00:00:02]} Re5 {[%clk 00:03:24]} {[%emt 00:00:19]}
40. a4 {[%clk 00:00:34]} {[%emt 00:05:59]} bxa4 {[%clk 00:03:06]} {[%emt
00:00:47]} 41. Bxa4 {[%clk 00:00:59]} {[%emt 00:00:05]} Re3 {[%clk 00:25:07]}
{[%emt 00:08:29]} 42. Bd1 {[%clk 00:16:35]} {[%emt 00:14:54]} Bg6 {[%clk
00:15:12]} {[%emt 00:10:24]} 43. Be2 {[%clk 00:16:55]} {[%emt 00:00:09]} e5
{[%clk 00:14:28]} {[%emt 00:01:15]} 44. Rh1 {[%clk 00:15:54]} {[%emt 00:01:31]}
e4 {[%clk 00:11:03]} {[%emt 00:03:56]} 45. fxe4 {[%clk 00:15:49]} {[%emt
00:00:35]} Bxe4 {[%clk 00:11:28]} {[%emt 00:00:04]} 46. Rh5 {[%clk 00:15:32]}
{[%emt 00:00:47]} Kf6 {[%clk 00:11:48]} {[%emt 00:00:11]} 47. Rh6+ {[%clk
00:12:47]} {[%emt 00:03:15]} Bg6 {[%clk 00:09:55]} {[%emt 00:02:23]} 48. Rh8
{[%clk 00:12:08]} {[%emt 00:01:09]} Re8 {[%clk 00:05:21]} {[%emt 00:05:04]} 49.
Rh3 {[%clk 00:12:06]} {[%emt 00:00:31]} Be4 {[%clk 00:04:17]} {[%emt 00:01:33]}
50. Rh2 {[%clk 00:08:45]} {[%emt 00:03:52]} Ra8 {[%clk 00:04:02]} {[%emt
00:00:46]} 51. Rh3 {[%clk 00:07:17]} {[%emt 00:01:58]} Ra2+ {[%clk 00:01:40]}
{[%emt 00:02:52]} 52. Ke1 {[%clk 00:07:41]} {[%emt 00:00:06]} Ra1+ {[%clk
00:00:33]} {[%emt 00:01:37]} 53. Kf2 {[%clk 00:06:37]} {[%emt 00:01:33]} Ra2
{[%clk 00:00:35]} {[%emt 00:00:29]} 54. Ke1 {[%clk 00:06:51]} {[%emt 00:00:15]}
Bd5 {[%clk 00:00:31]} {[%emt 00:00:34]} 55. Rh8 {[%clk 00:03:11]} {[%emt
00:04:10]} f3 {[%clk 00:00:40]} {[%emt 00:00:22]} 56. Bxf3 {[%clk 00:03:24]}
{[%emt 00:00:16]} Kg7 {[%clk 00:00:34]} {[%emt 00:00:36]} 57. Rh3 {[%clk
00:03:48]} {[%emt 00:00:05]} Kf6 {[%clk 00:00:41]} {[%emt 00:00:24]} 1/2-1/2

[Event "Top 12 Féminin 2026"]
[Site "Asnières-sur-Seine, France"]
[Date "2026.05.13"]
[Round "1.3"]
[White "Iglesias, Yosha"]
[Black "Cramling, Pia"]
[Result "1/2-1/2"]
[TimeControl "1h30 / 40 moves + 30m + 30sec/move"]
[WhiteTitle "FM"]
[BlackTitle "GM"]
[WhiteFideId "-"]
[BlackFideId "-"]
[WhiteElo "2325"]
[BlackElo "2384"]

1. d4 {[%clk 01:30:54]} {[%emt 00:00:04]} Nf6 {[%clk 01:30:54]} {[%emt
00:00:07]} 2. Bf4 {[%clk 01:31:19]} {[%emt 00:00:05]} e6 {[%clk 01:30:01]}
{[%emt 00:01:23]} 3. e3 {[%clk 01:31:05]} {[%emt 00:00:44]} c5 {[%clk
01:29:27]} {[%emt 00:01:04]} 4. c3 {[%clk 01:30:37]} {[%emt 00:00:58]} b6
{[%clk 01:28:23]} {[%emt 00:01:35]} 5. Nf3 {[%clk 01:30:04]} {[%emt 00:01:03]}
Bb7 {[%clk 01:27:41]} {[%emt 00:01:12]} 6. h3 {[%clk 01:23:54]} {[%emt
00:06:40]} Be7 {[%clk 01:26:15]} {[%emt 00:01:56]} 7. Nbd2 {[%clk 01:24:04]}
{[%emt 00:00:20]} cxd4 {[%clk 01:18:41]} {[%emt 00:08:04]} 8. exd4 {[%clk
01:24:10]} {[%emt 00:00:24]} O-O {[%clk 01:18:56]} {[%emt 00:00:16]} 9. Bd3
{[%clk 01:24:22]} {[%emt 00:00:17]} d6 {[%clk 01:18:52]} {[%emt 00:00:34]} 10.
O-O {[%clk 01:24:14]} {[%emt 00:00:38]} Nbd7 {[%clk 01:18:46]} {[%emt
00:00:36]} 11. Bh2 {[%clk 01:22:49]} {[%emt 00:01:55]} Re8 {[%clk 01:18:08]}
{[%emt 00:01:08]} 12. a4 {[%clk 01:22:51]} {[%emt 00:00:29]} a6 {[%clk
01:18:13]} {[%emt 00:00:26]} 13. Ne1 {[%clk 01:18:58]} {[%emt 00:04:22]} Bf8
{[%clk 01:11:07]} {[%emt 00:07:35]} 14. Nc2 {[%clk 01:19:14]} {[%emt 00:00:15]}
e5 {[%clk 01:05:21]} {[%emt 00:06:16]} 15. Ne3 {[%clk 01:19:03]} {[%emt
00:00:40]} g6 {[%clk 00:53:58]} {[%emt 00:11:53]} 16. Qb3 {[%clk 01:14:20]}
{[%emt 00:05:13]} d5 {[%clk 00:43:42]} {[%emt 00:10:47]} 17. Rfe1 {[%clk
01:04:16]} {[%emt 00:10:34]} Bh6 {[%clk 00:35:44]} {[%emt 00:08:27]} 18. Rad1
{[%clk 00:56:58]} {[%emt 00:07:49]} exd4 {[%clk 00:28:27]} {[%emt 00:07:47]} 19.
cxd4 {[%clk 00:57:15]} {[%emt 00:00:13]} Nh5 {[%clk 00:28:21]} {[%emt
00:00:35]} 20. Be2 {[%clk 00:42:31]} {[%emt 00:15:15]} Nf4 {[%clk 00:27:11]}
{[%emt 00:01:40]} 21. Bf3 {[%clk 00:42:26]} {[%emt 00:00:35]} Nf6 {[%clk
00:25:22]} {[%emt 00:02:19]} 22. Nb1 {[%clk 00:40:05]} {[%emt 00:02:51]} Re6
{[%clk 00:14:44]} {[%emt 00:11:08]} 23. Nc3 {[%clk 00:26:04]} {[%emt 00:14:32]}
Qe7 {[%clk 00:13:33]} {[%emt 00:01:40]} 24. a5 {[%clk 00:15:54]} {[%emt
00:10:41]} b5 {[%clk 00:12:14]} {[%emt 00:01:48]} 25. Rf1 {[%clk 00:06:15]}
{[%emt 00:10:08]} Rd8 {[%clk 00:11:34]} {[%emt 00:01:10]} 26. Bxf4 {[%clk
00:05:47]} {[%emt 00:00:59]} Bxf4 {[%clk 00:12:01]} {[%emt 00:00:03]} 27. Nexd5
{[%clk 00:04:03]} {[%emt 00:02:13]} Nxd5 {[%clk 00:12:22]} {[%emt 00:00:08]} 28.
Bxd5 {[%clk 00:04:06]} {[%emt 00:00:28]} Bxd5 {[%clk 00:09:48]} {[%emt
00:03:03]} 29. Nxd5 {[%clk 00:04:32]} {[%emt 00:00:04]} Qg5 {[%clk 00:09:41]}
{[%emt 00:00:36]} 30. Nxf4 {[%clk 00:04:24]} {[%emt 00:00:40]} Qxf4 {[%clk
00:10:06]} {[%emt 00:00:04]} 31. d5 {[%clk 00:04:32]} {[%emt 00:00:23]} Red6
{[%clk 00:10:17]} {[%emt 00:00:17]} 32. Rfe1 {[%clk 00:03:05]} {[%emt
00:01:58]} Qc4 {[%clk 00:09:54]} {[%emt 00:00:52]} 33. Qxc4 {[%clk 00:02:12]}
{[%emt 00:01:24]} 1/2-1/2

[Event "Top 12 Féminin 2026"]
[Site "Asnières-sur-Seine, France"]
[Date "2026.05.13"]
[Round "1.4"]
[White "Belenkaya, Dina"]
[Black "Belluire, Beatrice"]
[Result "1-0"]
[TimeControl "1h30 / 40 moves + 30m + 30sec/move"]
[WhiteTitle "WGM"]
[BlackTitle "WFM"]
[WhiteFideId "-"]
[BlackFideId "-"]
[WhiteElo "2186"]
[BlackElo "2123"]

1. d4 {[%clk 01:30:57]} {[%emt 00:00:02]} d5 {[%clk 01:30:52]} {[%emt
00:00:08]} 2. c4 {[%clk 01:31:22]} {[%emt 00:00:05]} e6 {[%clk 01:31:17]}
{[%emt 00:00:05]} 3. Nc3 {[%clk 01:31:44]} {[%emt 00:00:08]} h6 {[%clk
01:31:27]} {[%emt 00:00:20]} 4. Bf4 {[%clk 01:28:46]} {[%emt 00:03:27]} Bd6
{[%clk 01:30:41]} {[%emt 00:01:16]} 5. Bxd6 {[%clk 01:28:20]} {[%emt 00:00:57]}
Qxd6 {[%clk 01:31:09]} {[%emt 00:00:02]} 6. e4 {[%clk 01:27:09]} {[%emt
00:01:41]} dxe4 {[%clk 01:29:04]} {[%emt 00:02:35]} 7. Nxe4 {[%clk 01:27:09]}
{[%emt 00:00:30]} Qb4+ {[%clk 01:27:42]} {[%emt 00:01:52]} 8. Qd2 {[%clk
01:26:45]} {[%emt 00:00:54]} Qxd2+ {[%clk 01:26:05]} {[%emt 00:02:07]} 9. Kxd2
{[%clk 01:26:17]} {[%emt 00:00:57]} Ne7 {[%clk 01:08:24]} {[%emt 00:18:11]} 10.
Nf3 {[%clk 01:26:02]} {[%emt 00:00:45]} O-O {[%clk 01:05:39]} {[%emt 00:03:16]}
11. Rd1 {[%clk 01:22:17]} {[%emt 00:04:16]} Rd8 {[%clk 01:03:20]} {[%emt
00:02:48]} 12. Kc3 {[%clk 01:18:44]} {[%emt 00:04:02]} b6 {[%clk 00:55:40]}
{[%emt 00:08:11]} 13. Bd3 {[%clk 01:09:24]} {[%emt 00:09:50]} Bb7 {[%clk
00:54:48]} {[%emt 00:01:22]} 14. Rhe1 {[%clk 01:06:55]} {[%emt 00:02:59]} Nd7
{[%clk 00:42:42]} {[%emt 00:12:36]} 15. b4 {[%clk 01:04:18]} {[%emt 00:03:07]}
f5 {[%clk 00:28:29]} {[%emt 00:14:44]} 16. Ng3 {[%clk 01:01:03]} {[%emt
00:03:45]} Kf7 {[%clk 00:26:40]} {[%emt 00:02:19]} 17. d5 {[%clk 00:48:31]}
{[%emt 00:13:01]} exd5 {[%clk 00:26:05]} {[%emt 00:01:06]} 18. Nxf5 {[%clk
00:47:45]} {[%emt 00:01:16]} Nxf5 {[%clk 00:18:24]} {[%emt 00:08:11]} 19. Bxf5
{[%clk 00:48:11]} {[%emt 00:00:04]} Nf8 {[%clk 00:14:59]} {[%emt 00:03:56]} 20.
c5 {[%clk 00:44:31]} {[%emt 00:04:10]} c6 {[%clk 00:13:56]} {[%emt 00:01:33]}
21. Ne5+ {[%clk 00:37:55]} {[%emt 00:07:07]} Kf6 {[%clk 00:13:25]} {[%emt
00:01:01]} 22. Bh3 {[%clk 00:33:30]} {[%emt 00:04:54]} Re8 {[%clk 00:13:13]}
{[%emt 00:00:43]} 23. Rd3 {[%clk 00:26:25]} {[%emt 00:07:34]} d4+ {[%clk
00:09:34]} {[%emt 00:04:09]} 24. Kd2 {[%clk 00:23:11]} {[%emt 00:03:43]} h5
{[%clk 00:01:47]} {[%emt 00:08:17]} 25. Rf3+ {[%clk 00:21:44]} {[%emt
00:01:56]} Kg5 {[%clk 00:02:08]} {[%emt 00:00:10]} 26. Nf7+ {[%clk 00:21:35]}
{[%emt 00:00:39]} Kg6 {[%clk 00:02:18]} {[%emt 00:00:21]} 27. Bf5+ {[%clk
00:21:13]} {[%emt 00:00:52]} 1-0

[Event "Top 12 Féminin 2026"]
[Site "Asnières-sur-Seine, France"]
[Date "2026.05.13"]
[Round "1.5"]
[White "Bulmaga, Irina"]
[Black "Ushenina, Anna"]
[Result "1/2-1/2"]
[TimeControl "1h30 / 40 moves + 30m + 30sec/move"]
[WhiteTitle "IM"]
[BlackTitle "GM"]
[WhiteFideId "-"]
[BlackFideId "-"]
[WhiteElo "2361"]
[BlackElo "2420"]

1. e4 {[%clk 01:30:55]} {[%emt 00:00:04]} c5 {[%clk 01:30:45]} {[%emt
00:00:16]} 2. Nf3 {[%clk 01:31:17]} {[%emt 00:00:08]} Nc6 {[%clk 01:30:55]}
{[%emt 00:00:21]} 3. Bb5 {[%clk 01:31:34]} {[%emt 00:00:13]} Nf6 {[%clk
01:30:58]} {[%emt 00:00:28]} 4. Nc3 {[%clk 01:30:58]} {[%emt 00:01:05]} Qc7
{[%clk 01:31:01]} {[%emt 00:00:28]} 5. O-O {[%clk 01:26:46]} {[%emt 00:04:42]}
Nd4 {[%clk 01:30:50]} {[%emt 00:00:41]} 6. Re1 {[%clk 01:18:39]} {[%emt
00:08:37]} a6 {[%clk 01:30:40]} {[%emt 00:00:41]} 7. Bc4 {[%clk 01:14:54]}
{[%emt 00:04:15]} Ng4 {[%clk 01:20:43]} {[%emt 00:10:26]} 8. e5 {[%clk
01:09:24]} {[%emt 00:06:00]} h5 {[%clk 01:08:23]} {[%emt 00:12:51]} 9. h3
{[%clk 00:43:28]} {[%emt 00:26:25]} Nh6 {[%clk 00:56:04]} {[%emt 00:12:49]} 10.
a4 {[%clk 00:35:48]} {[%emt 00:08:10]} e6 {[%clk 00:55:31]} {[%emt 00:01:03]}
11. d3 {[%clk 00:31:47]} {[%emt 00:04:31]} Nhf5 {[%clk 00:45:09]} {[%emt
00:10:52]} 12. Bf4 {[%clk 00:21:02]} {[%emt 00:11:14]} b6 {[%clk 00:39:56]}
{[%emt 00:05:44]} 13. Ne4 {[%clk 00:18:04]} {[%emt 00:03:28]} Bb7 {[%clk
00:28:07]} {[%emt 00:12:20]} 14. c3 {[%clk 00:17:18]} {[%emt 00:01:15]} Nxf3+
{[%clk 00:27:35]} {[%emt 00:01:02]} 15. Qxf3 {[%clk 00:17:45]} {[%emt
00:00:02]} Nh4 {[%clk 00:23:02]} {[%emt 00:05:03]} 16. Qe3 {[%clk 00:15:26]}
{[%emt 00:02:49]} Be7 {[%clk 00:12:41]} {[%emt 00:10:52]} 17. Rac1 {[%clk
00:13:00]} {[%emt 00:02:55]} Ng6 {[%clk 00:05:43]} {[%emt 00:07:28]} 18. d4
{[%clk 00:09:48]} {[%emt 00:03:42]} Nxf4 {[%clk 00:03:24]} {[%emt 00:02:49]} 19.
Qxf4 {[%clk 00:10:16]} {[%emt 00:00:02]} Rh6 {[%clk 00:01:56]} {[%emt
00:01:58]} 20. b4 {[%clk 00:08:24]} {[%emt 00:02:22]} Kf8 {[%clk 00:01:29]}
{[%emt 00:00:57]} 21. f3 {[%clk 00:06:32]} {[%emt 00:02:22]} Rc8 {[%clk
00:01:31]} {[%emt 00:00:27]} 22. Nd6 {[%clk 00:05:09]} {[%emt 00:01:52]} Bxd6
{[%clk 00:01:45]} {[%emt 00:00:16]} 23. exd6 {[%clk 00:05:38]} {[%emt
00:00:02]} Qd8 {[%clk 00:01:58]} {[%emt 00:00:17]} 24. bxc5 {[%clk 00:04:15]}
{[%emt 00:01:53]} bxc5 {[%clk 00:02:23]} {[%emt 00:00:05]} 25. Rb1 {[%clk
00:04:35]} {[%emt 00:00:09]} cxd4 {[%clk 00:01:55]} {[%emt 00:00:59]} 26. Rxb7
{[%clk 00:03:35]} {[%emt 00:01:30]} Rxc4 {[%clk 00:02:20]} {[%emt 00:00:05]} 27.
Reb1 {[%clk 00:02:19]} {[%emt 00:01:45]} g5 {[%clk 00:02:09]} {[%emt 00:00:41]}
28. Qe4 {[%clk 00:01:39]} {[%emt 00:01:10]} Kg7 {[%clk 00:02:04]} {[%emt
00:00:35]} 29. cxd4 {[%clk 00:01:30]} {[%emt 00:00:39]} Qf6 {[%clk 00:01:35]}
{[%emt 00:00:59]} 30. Rxd7 {[%clk 00:00:52]} {[%emt 00:01:08]} Qxd4+ {[%clk
00:01:52]} {[%emt 00:00:13]} 31. Qxd4+ {[%clk 00:01:13]} {[%emt 00:00:09]} Rxd4
{[%clk 00:02:19]} {[%emt 00:00:03]} 32. Rb6 {[%clk 00:00:34]} {[%emt 00:01:08]}
Rxa4 {[%clk 00:01:24]} {[%emt 00:01:25]} 33. Ra7 {[%clk 00:00:48]} {[%emt
00:00:16]} Rd4 {[%clk 00:01:09]} {[%emt 00:00:46]} 34. Raxa6 {[%clk 00:00:40]}
{[%emt 00:00:38]} e5 {[%clk 00:01:06]} {[%emt 00:00:32]} 35. Kf2 {[%clk
00:01:05]} {[%emt 00:00:05]} h4 {[%clk 00:01:16]} {[%emt 00:00:21]} 36. Ke3
{[%clk 00:01:22]} {[%emt 00:00:13]} Re6 {[%clk 00:01:32]} {[%emt 00:00:14]} 37.
Rb5 {[%clk 00:00:53]} {[%emt 00:00:59]} Rdxd6 {[%clk 00:00:55]} {[%emt
00:01:07]} 38. Rxd6 {[%clk 00:01:17]} {[%emt 00:00:06]} Rxd6 {[%clk 00:01:23]}
{[%emt 00:00:02]} 39. Rxe5 {[%clk 00:01:39]} {[%emt 00:00:06]} 1/2-1/2